bitfinex/quotes_SOLUSD_20250619
["timestamp","ask_amount","ask_price","bid_price","bid_amount"]
[1750321272214,19.83156909,145.76,145.74,6.86153423]
[1750321273036,25.05584803,145.76,145.74,6.86153423]
[1750321274635,19.83156909,145.76,145.74,6.86153423]
[1750321275235,25.05584803,145.76,145.74,6.86153423]
[1750321277715,25.05584803,145.76,145.73,24.01669344]
[1750321279832,25.05584803,145.76,145.73,17.15468837]
[1750321280041,5.22427894,145.76,145.73,17.15468837]
[1750321280734,5.22427894,145.77,145.73,24.01669344]
[1750321281445,5.13570714,145.76,145.73,24.01669344]
[1750321281629,5.22427894,145.77,145.73,24.01669344]
[1750321281827,5.1357078,145.76,145.73,24.01669344]
[1750321282042,5.22427894,145.77,145.73,24.01669344]
[1750321282228,5.1357382,145.76,145.73,24.01669344]
[1750321282433,5.13824997,145.78,145.73,29.24097238]
[1750321282744,5.13641517,145.77,145.73,29.24097238]
[1750321282945,5.22427894,145.78,145.73,29.24097238]
[1750321283240,5.13641386,145.77,145.73,24.01669344]
[1750321283430,5.22427894,145.78,145.74,5.22427894]
[1750321283625,5.13718133,145.77,145.73,117.44097238]
[1750321283841,5.22427894,145.78,145.73,117.44097238]
[1750321284141,5.13718199,145.77,145.73,117.44097238]
[1750321284345,5.22427894,145.78,145.73,117.44097238]
[1750321284525,5.13772465,145.77,145.73,117.44097238]
[1750321284733,5.22427894,145.78,145.73,117.44097238]
[1750321284932,5.13770409,145.77,145.73,117.44097238]
[1750321285146,5.22427894,145.78,145.73,117.44097238]
[1750321285345,5.13761475,145.77,145.73,151.75099776]
[1750321285551,5.22427894,145.78,145.74,5.22427894]
[1750321285843,5.13834805,145.77,145.74,5.22427894]
[1750321286034,5.22427894,145.78,145.74,5.22427894]
[1750321286228,5.13834871,145.77,145.74,5.22427894]
[1750321286434,5.22427894,145.78,145.74,5.22427894]
[1750321286730,5.13855699,145.77,145.74,5.22427894]
[1750321286933,5.22427894,145.78,145.75,24.01372212]
[1750321287148,5.13855633,145.77,145.75,24.01372212]
[1750321287346,31.22427894,145.79,145.75,24.01372212]
[1750321287528,10.27825403,145.78,145.75,24.01372212]
[1750321287849,5.13880041,145.77,145.75,24.01372212]
[1750321288148,10.36372444,145.78,145.75,24.01372212]
[1750321288349,5.13866388,145.77,145.75,24.01372212]
[1750321288545,5.22427894,145.78,145.75,24.01372212]
[1750321288745,26.0,145.79,145.75,24.01372212]
[1750321288952,10.3631956,145.78,145.75,24.01372212]
[1750321289249,5.22427894,145.78,145.75,24.01372212]
[1750321292155,26.0,145.79,145.75,24.01372212]
[1750321292468,10.36367624,145.78,145.75,24.01372212]
[1750321292760,5.22427894,145.78,145.75,24.01372212]
[1750321297935,5.22427894,145.78,145.75,17.15265866]
[1750321299249,5.22427894,145.78,145.75,24.01372212]
[1750321299604,10.36387195,145.77,145.75,24.01372212]
[1750321299752,10.36387195,145.76,145.75,24.01372212]
[1750321300665,10.36387195,145.76,145.73,24.01701776]
[1750321300868,5.22427894,145.76,145.73,24.01701776]
[1750321301638,5.14033364,145.75,145.73,24.01701776]
[1750321301856,5.22427894,145.76,145.73,24.01701776]
[1750321302065,10.36461258,145.75,145.73,24.01701776]
[1750321302256,5.22427894,145.75,145.73,24.01701776]
[1750321310381,2.56913591,145.78,145.73,24.01701776]
[1750321310561,5.22427894,145.75,145.73,24.01701776]
[1750321311665,5.22427894,145.75,145.73,17.15501269]
[1750321312652,5.22427894,145.76,145.73,17.15501269]
[1750321312973,5.13816596,145.75,145.73,17.15501269]
[1750321313155,5.22427894,145.76,145.71,58.33348263]
[1750321313345,5.13809077,145.75,145.71,58.33348263]
[1750321313550,5.22427894,145.76,145.71,63.55776157]
[1750321313749,5.13799969,145.75,145.71,63.55776157]
[1750321313965,5.22427894,145.76,145.71,63.55776157]
[1750321314178,5.13799969,145.75,145.72,5.22427894]
[1750321314487,5.22427894,145.76,145.72,5.22427894]
[1750321315063,40.25484374,145.79,145.72,5.22427894]
[1750321315383,5.22427894,145.77,145.74,24.01536982]
[1750321316391,26.0,145.79,145.74,24.01536982]
[1750321316392,5.22427894,145.76,145.74,24.01536982]
[1750321317775,5.22427894,145.76,145.74,17.15383559]
[1750321317970,26.0,145.79,145.74,110.57811453]
[1750321318178,5.13721919,145.78,145.75,5.22427894]
[1750321318476,5.22427894,145.8,145.75,5.22427894]
[1750321318477,31.22427894,145.8,145.75,5.22427894]
[1750321318781,5.1369013,145.79,145.75,5.22427894]
[1750321318983,5.1369013,145.78,145.75,5.22427894]
[1750321319187,31.22427894,145.8,145.75,5.22427894]
[1750321319403,5.13651867,145.79,145.75,5.22427894]
[1750321319693,5.13651867,145.78,145.75,5.22427894]
[1750321319986,31.22427894,145.8,145.76,24.01207463]
[1750321320173,10.36079695,145.79,145.76,24.01207463]
[1750321320362,5.13651801,145.78,145.76,24.01207463]
[1750321320561,5.22427894,145.79,145.76,24.01207463]
[1750321320780,5.13638495,145.78,145.76,24.01207463]
[1750321320961,5.22427894,145.79,145.76,24.01207463]
[1750321321162,5.13638495,145.78,145.76,24.01207463]
[1750321321362,5.22427894,145.79,145.76,24.01207463]
[1750321321563,5.13609425,145.78,145.76,24.01207463]
[1750321321863,5.22427894,145.79,145.76,24.01207463]
[1750321322192,5.13609425,145.78,145.76,24.01207463]
[1750321322490,26.0,145.8,145.76,17.15148188]
[1750321322663,10.36010886,145.79,145.76,17.15148188]
[1750321322863,5.13582992,145.78,145.76,17.15148188]
[1750321323064,5.22427894,145.79,145.76,17.15148188]
[1750321323264,5.13559529,145.78,145.76,17.15148188]
[1750321323464,5.22427894,145.79,145.76,24.01207463]
[1750321323665,5.13559529,145.78,145.76,24.01207463]
[1750321323890,5.22427894,145.79,145.76,24.01207463]
[1750321324091,5.13559529,145.78,145.76,24.01207463]
[1750321324293,5.22427894,145.79,145.76,24.01207463]
[1750321324589,5.13538418,145.78,145.76,24.01207463]
[1750321324791,5.22427894,145.79,145.76,24.01207463]
[1750321324989,5.13538418,145.78,145.76,24.01207463]
[1750321325190,5.22427894,145.79,145.76,24.01207463]
[1750321325390,5.13519261,145.78,145.76,24.01207463]
[1750321325688,5.22427894,145.79,145.76,24.01207463]
[1750321325862,5.13519261,145.78,145.76,24.01207463]
[1750321326068,5.22427894,145.79,145.76,24.01207463]
[1750321326296,5.13501946,145.78,145.76,24.01207463]
[1750321326569,5.22427894,145.79,145.76,24.01207463]
[1750321326787,5.13501946,145.78,145.76,24.01207463]
[1750321327088,5.22427894,145.79,145.76,24.01207463]
[1750321330195,26.0,145.8,145.76,24.01207463]
[1750321330391,5.13380758,145.79,145.76,24.01207463]
[1750321330573,5.22427894,145.79,145.76,24.01207463]
[1750321332994,5.13339895,145.78,145.76,24.01207463]
[1750321333168,5.22427894,145.79,145.76,24.01207463]
[1750321333368,5.22427894,145.77,145.76,6.86059275]
[1750321333573,10.35796046,145.77,145.76,6.86059275]
[1750321334779,10.35796046,145.77,145.73,17.15408469]
[1750321334978,5.22427894,145.75,145.73,17.15408469]
[1750321337483,5.22427894,145.76,145.73,17.15408469]
[1750321339873,5.22427894,145.76,145.73,24.01608976]
[1750321342137,6.42434374,145.8,145.74,5.22427894]
[1750321342289,31.22427894,145.78,145.74,5.22427894]
[1750321343219,26.0,145.78,145.74,5.22427894]
[1750321343391,26.0,145.78,145.75,24.01372212]
[1750321347698,31.22427894,145.78,145.75,24.01372212]
[1750321349297,31.22427894,145.78,145.75,17.15265866]
[1750321350321,31.22427894,145.78,145.75,24.01372212]
[1750321351721,5.22427894,145.78,145.75,24.01372212]
[1750321352106,5.22427894,145.79,145.75,24.01372212]
[1750321352318,5.13515193,145.78,145.75,24.01372212]
[1750321352502,5.22427894,145.79,145.75,24.01372212]
[1750321352817,5.13515193,145.78,145.75,24.01372212]
[1750321353012,5.22427894,145.79,145.75,24.01372212]
[1750321353212,5.13515193,145.78,145.75,24.01372212]
[1750321353419,5.22427894,145.79,145.75,24.01372212]
[1750321353716,5.13551484,145.78,145.75,24.01372212]
[1750321353919,5.22427894,145.79,145.75,24.01372212]
[1750321354104,5.13552338,145.78,145.75,24.01372212]
[1750321354306,5.22427894,145.79,145.75,24.01372212]
[1750321354604,5.13595973,145.78,145.75,24.01372212]
[1750321354800,5.22427894,145.79,145.75,24.01372212]
[1750321355009,5.13595054,145.78,145.75,24.01372212]
[1750321355203,5.22427894,145.79,145.75,24.01372212]
[1750321355409,5.22427894,145.77,145.75,24.01372212]
[1750321356212,5.22427894,145.77,145.73,24.01701776]
[1750321356724,5.13739128,145.76,145.73,24.01701776]
[1750321356927,5.22427894,145.77,145.73,24.01701776]
[1750321357099,5.13739617,145.76,145.73,24.01701776]
[1750321357299,5.22427894,145.77,145.73,24.01701776]
[1750321357523,5.13782522,145.76,145.73,24.01701776]
[1750321357822,5.22427894,145.77,145.73,24.01701776]
[1750321358127,5.13782456,145.76,145.73,24.01701776]
[1750321358429,5.22427894,145.77,145.73,24.01701776]
[1750321358612,5.1382802,145.76,145.73,24.01701776]
[1750321358812,5.22427894,145.77,145.73,24.01701776]
[1750321359012,5.13827166,145.76,145.73,24.01701776]
[1750321359215,5.22427894,145.77,145.73,24.01701776]
[1750321359413,5.13876428,145.76,145.73,24.01701776]
[1750321359615,5.22427894,145.76,145.73,24.01701776]
[1750321360630,5.22427894,145.75,145.73,24.01701776]
[1750321363424,5.22427894,145.74,145.73,24.01701776]
[1750321364334,5.22427894,145.74,145.73,17.15501269]
[1750321364733,5.22427894,145.74,145.72,6.86247598]
[1750321364933,5.22427894,145.73,145.72,6.86247598]
[1750321365238,10.36335928,145.73,145.72,6.86247598]
[1750321365928,10.36335928,145.73,145.69,24.02355771]
[1750321366137,5.22427894,145.71,145.69,24.02355771]
[1750321373147,5.22427894,145.72,145.69,24.02355771]
[1750321384352,5.22427894,145.73,145.69,24.02355771]
[1750321384535,5.22427894,145.73,145.69,29.24783665]
[1750321384736,5.22427894,145.73,145.69,24.02355771]
[1750321386837,5.22427894,145.72,145.69,24.02355771]
[1750321387036,5.22427894,145.72,145.69,112.22355771]
[1750321393057,5.22427894,145.72,145.69,24.02355771]
[1750321401038,10.35935224,145.75,145.7,5.22427894]
[1750321401362,5.22427894,145.75,145.7,5.22427894]
[1750321403467,5.22427894,145.74,145.71,24.02031431]
[1750321405259,5.22427894,145.73,145.71,24.02031431]
[1750321410352,5.22427894,145.74,145.71,146.53504905]
[1750321411265,5.22427894,145.73,145.71,146.53504905]
[1750321411846,5.22427894,145.73,145.71,112.22031431]
[1750321412057,5.22427894,145.72,145.71,112.22031431]
[1750321413564,5.22427894,145.73,145.71,112.22031431]
[1750321413760,5.22427894,145.73,145.71,24.02031431]
[1750321417054,5.22427894,145.73,145.71,17.15736737]
[1750321419165,26.0,145.77,145.71,17.15736737]
[1750321419358,5.22427894,145.73,145.71,17.15736737]
[1750321422857,5.22427894,145.72,145.7,6.86341798]
[1750321423170,10.36526278,145.71,145.7,6.86341798]
[1750321423361,10.36526278,145.71,145.65,24.0302094]
[1750321423562,5.22427894,145.68,145.65,112.2302094]
[1750321424382,10.28182139,145.72,145.65,112.2302094]
[1750321424580,5.22427894,145.69,145.65,112.2302094]
[1750321424882,5.22427894,145.71,145.67,5.22427894]
[1750321425088,5.22427894,145.72,145.67,5.22427894]
[1750321425258,5.14071195,145.73,145.67,93.42427894]
[1750321425458,5.22427894,145.71,145.67,93.42427894]
[1750321426581,5.22427894,145.71,145.68,24.02526084]
[1750321427158,5.22427894,145.72,145.68,29.24953978]
[1750321427775,5.22427894,145.72,145.68,117.44953978]
[1750321428768,5.22427894,145.73,145.68,117.44953978]
[1750321429379,5.22427894,145.72,145.68,117.44953978]
[1750321436368,5.22427894,145.72,145.68,112.22526084]
[1750321436576,5.22427894,145.72,145.68,117.44953978]
[1750321440589,5.22427894,145.73,145.68,151.77134098]
[1750321440793,5.22427894,145.73,145.68,153.40414098]
[1750321441570,5.22427894,145.73,145.69,5.22427894]
[1750321442995,5.22427894,145.73,145.7,24.02196293]
[1750321452804,26.0,145.74,145.7,24.02196293]
[1750321452989,31.22427894,145.74,145.7,24.02196293]
[1750321453473,5.22427894,145.74,145.7,24.02196293]
[1750321453679,26.0,145.76,145.7,24.02196293]
[1750321453903,5.22427894,145.74,145.7,24.02196293]
[1750321455412,5.22427894,145.75,145.7,63.56333178]
[1750321455710,26.0,145.76,145.71,5.22427894]
[1750321455711,5.22427894,145.76,145.71,5.22427894]
[1750321455886,5.13908509,145.75,145.71,5.22427894]
[1750321456086,5.22427894,145.76,145.71,5.22427894]
[1750321456312,5.13953893,145.75,145.72,24.01866593]
[1750321456489,5.22427894,145.76,145.72,24.01866593]
[1750321457687,5.22427894,145.75,145.72,24.01866593]
[1750321457905,26.0,145.78,145.72,24.01866593]
[1750321458091,5.22427894,145.75,145.72,24.01866593]
[1750321465019,5.22427894,145.76,145.72,24.01866593]
[1750321465308,5.22427894,145.75,145.72,29.24294487]
[1750321465522,5.22427894,145.77,145.73,5.22427894]
[1750321466092,5.22427894,145.77,145.74,24.01536982]
[1750321466309,31.22427894,145.78,145.74,24.01536982]
[1750321466514,5.13411805,145.77,145.74,24.01536982]
[1750321466703,31.22427894,145.78,145.74,24.01536982]
[1750321468318,20.31678148,145.82,145.74,22.37811453]
[1750321468569,5.22427894,145.78,145.74,22.37811453]
[1750321468849,5.22427894,145.78,145.74,110.57811453]
[1750321469729,5.22427894,145.78,145.74,117.43964876]
[1750321471469,7.14827588,145.83,145.76,5.22427894]
[1750321471655,5.22427894,145.81,145.77,24.01042738]
[1750321471955,5.22427894,145.8,145.77,24.01042738]
[1750321473065,5.22427894,145.79,145.77,24.01042738]
[1750321473360,26.0,145.82,145.77,24.01042738]
[1750321473361,5.22427894,145.8,145.77,24.01042738]
[1750321473764,5.22427894,145.8,145.77,17.15030527]
[1750321475832,5.22427894,145.8,145.77,24.01042738]
[1750321480962,26.0,145.82,145.77,24.01042738]
[1750321481165,5.22427894,145.8,145.77,24.01042738]
[1750321486050,5.22427894,145.79,145.77,24.01042738]
[1750321486837,5.22427894,145.8,145.77,24.01042738]
[1750321487035,31.11679776,145.82,145.77,24.01042738]
[1750321487281,5.22427894,145.78,145.77,6.86012211]
[1750321488359,5.22427894,145.78,145.75,24.01356831]
[1750321491263,5.22427894,145.77,145.75,24.01356831]
[1750321492188,5.22427894,145.76,145.75,6.86106346]
[1750321492847,5.22427894,145.76,145.72,24.01789898]
[1750321493048,5.22427894,145.75,145.72,24.01789898]
[1750321497379,26.0,145.78,145.72,24.01789898]
[1750321497683,5.22427894,145.75,145.72,24.01789898]
[1750321502312,26.0,145.77,145.72,24.01789898]
[1750321502458,5.22427894,145.74,145.72,24.01789898]
[1750321502778,5.22427894,145.73,145.72,6.86247598]
[1750321503694,5.13063884,145.75,145.72,6.86247598]
[1750321503865,26.0,145.74,145.72,24.01866593]
[1750321506070,5.22427894,145.75,145.72,24.01866593]
[1750321507677,5.22427894,145.74,145.72,24.01866593]
[1750321509692,5.22427894,145.73,145.72,24.01866593]
[1750321511383,5.22427894,145.73,145.72,6.86247598]
[1750321512792,5.22427894,145.73,145.7,6.86341798]
[1750321512983,5.22427894,145.71,145.7,6.86341798]
[1750321513401,5.22427894,145.71,145.67,6.86483146]
[1750321513696,5.22427894,145.69,145.67,6.86483146]
[1750321514502,5.22427894,145.69,145.67,24.02691013]
[1750321518704,5.22427894,145.7,145.67,24.02691013]
[1750321519701,46.89711576,145.74,145.67,24.02691013]
[1750321519884,5.22427894,145.71,145.67,29.25118907]
[1750321521501,26.0,145.74,145.69,5.22427894]
[1750321521686,5.22427894,145.73,145.7,6.86341798]
[1750321521879,26.0,145.74,145.7,24.02196293]
[1750321522078,5.22427894,145.73,145.7,24.02196293]
[1750321525691,5.22427894,145.73,145.7,17.15854495]
[1750321525888,5.22427894,145.72,145.7,17.15854495]
[1750321527318,5.22427894,145.73,145.69,5.22427894]
[1750321528219,5.22427894,145.74,145.69,5.22427894]
[1750321528383,5.22427894,145.74,145.7,5.22427894]
[1750321529286,5.22427894,145.74,145.71,6.86294694]
[1750321529805,5.22427894,145.75,145.71,29.24459325]
[1750321530399,5.22427894,145.76,145.72,5.22427894]
[1750321531292,5.22427894,145.76,145.73,24.01701776]
[1750321533702,31.22427894,145.77,145.73,24.01701776]
[1750321535802,31.22427894,145.77,145.73,29.2412967]
[1750321538786,8.0265,145.8,145.74,5.22427894]
[1750321539016,5.22427894,145.79,145.74,5.22427894]
[1750321539713,5.22427894,145.79,145.75,5.22427894]
[1750321540099,5.22427894,145.79,145.76,24.01207463]
[1750321540817,5.22427894,145.8,145.76,24.01207463]
[1750321541736,26.0,145.81,145.76,29.23635357]
[1750321541900,31.22427894,145.81,145.76,29.23635357]
[1750321542824,5.22427894,145.8,145.76,29.23635357]
[1750321545940,31.22427894,145.81,145.76,29.23635357]
[1750321548124,31.22427894,145.81,145.77,5.22427894]
[1750321549336,31.22427894,145.81,145.78,24.00878034]
[1750321555533,0.7244944,145.83,145.79,5.22427894]
[1750321555743,0.7244944,145.83,145.8,5.22427894]
[1750321556147,0.7244944,145.83,145.79,18.64964886]
[1750321556454,0.7244944,145.83,145.82,5.22427894]
[1750321557259,0.7244944,145.83,145.82,12.08204879]
[1750321562401,0.7244944,145.83,145.82,38.05429765]
[1750321562928,0.7244944,145.83,145.82,12.63776985]
[1750321563159,0.7244944,145.83,145.82,17.86204879]
[1750321570158,0.7244944,145.83,145.82,36.51169765]
[1750321571769,0.7244944,145.83,145.82,31.28741871]
[1750321571948,0.7244944,145.83,145.82,36.51169765]
[1750321573367,0.7244944,145.83,145.82,124.71169765]
[1750321579059,0.7244944,145.83,145.82,119.48741871]
[1750321579260,0.7244944,145.83,145.82,124.71169765]
[1750321580188,0.7244944,145.83,145.82,106.06204879]
[1750321582862,0.7244944,145.83,145.82,124.71169765]
[1750321583258,0.7244944,145.83,145.82,30.73169765]
[1750321588063,0.7244944,145.83,145.82,118.93169765]
[1750321588486,0.7244944,145.83,145.82,100.28204879]
[1750321595576,0.7244944,145.83,145.82,118.93169765]
[1750321598579,0.7244944,145.83,145.82,113.70741871]
[1750321598777,0.7244944,145.83,145.82,118.93169765]
[1750321600281,0.7244944,145.83,145.82,113.70741871]
[1750321600615,0.7244944,145.83,145.82,118.93169765]
[1750321606997,5.22427894,145.91,145.83,87.4755056]
[1750321607200,5.13059317,145.9,145.87,5.22427894]
[1750321607422,5.22427894,145.91,145.87,5.22427894]
[1750321607601,5.12995848,145.9,145.86,5.22427894]
[1750321607912,5.22427894,145.91,145.86,5.22427894]
[1750321608110,5.12995719,145.9,145.86,5.22427894]
[1750321608308,5.22427894,145.91,145.86,5.22427894]
[1750321608521,5.12949357,145.9,145.87,23.99396722]
[1750321608811,5.22427894,145.91,145.87,23.99396722]
[1750321609013,5.12949357,145.9,145.87,23.99396722]
[1750321609183,6.39304743,145.94,145.89,5.22427894]
[1750321609384,5.22427894,145.91,145.87,117.24947282]
[1750321609588,5.22427894,145.91,145.87,57.41396722]
[1750321609809,5.22427894,145.91,145.87,34.99824616]
[1750321613808,1.6114,145.92,145.87,34.99824616]
[1750321613993,5.22427894,145.91,145.87,34.99824616]
[1750321614790,5.22427894,145.91,145.87,29.77396722]
[1750321614991,5.22427894,145.91,145.87,34.99824616]
[1750321616001,1.6114,145.92,145.87,34.99824616]
[1750321616201,5.22427894,145.91,145.87,34.99824616]
[1750321618895,1.6114,145.92,145.87,34.99824616]
[1750321619094,5.22427894,145.91,145.87,34.99824616]
[1750321620287,5.22427894,145.91,145.87,29.77396722]
[1750321620627,5.22427894,145.91,145.87,34.99824616]
[1750321621522,1.6114,145.92,145.87,34.99824616]
[1750321621827,5.22427894,145.91,145.87,34.99824616]
[1750321623224,5.22427894,145.91,145.87,60.99824616]
[1750321624315,5.22427894,145.91,145.87,55.77396722]
[1750321624537,5.22427894,145.91,145.87,60.99824616]
[1750321624736,1.6114,145.92,145.87,60.99824616]
[1750321624901,5.22427894,145.91,145.87,60.99824616]
[1750321625102,1.6114,145.92,145.87,60.99824616]
[1750321625427,5.22427894,145.91,145.87,60.99824616]
[1750321626134,5.22427894,145.91,145.87,29.77396722]
[1750321626443,5.22427894,145.88,145.87,29.77396722]
[1750321626819,6.73569828,145.92,145.87,29.77396722]
[1750321627122,5.22427894,145.89,145.87,29.77396722]
[1750321632502,5.22427894,145.89,145.87,23.99396722]
[1750321634027,5.12958051,145.91,145.87,23.99396722]
[1750321634216,5.22427894,145.89,145.87,17.13854802]
[1750321635232,5.22427894,145.9,145.86,5.22427894]
[1750321636316,27.6114,145.92,145.87,23.99396722]
[1750321636504,5.22427894,145.9,145.87,23.99396722]
[1750321639321,5.13473041,145.89,145.87,23.99396722]
[1750321639526,5.22427894,145.9,145.87,23.99396722]
[1750321639716,5.13482941,145.89,145.87,23.99396722]
[1750321639919,5.22427894,145.9,145.87,23.99396722]
[1750321640132,5.13482907,145.89,145.87,23.99396722]
[1750321640335,5.22427894,145.9,145.87,23.99396722]
[1750321640537,5.13657249,145.89,145.87,23.99396722]
[1750321640738,5.22427894,145.9,145.87,23.99396722]
[1750321641038,5.13657316,145.89,145.87,23.99396722]
[1750321641217,5.22427894,145.9,145.87,23.99396722]
[1750321641418,5.1374666,145.89,145.87,23.99396722]
[1750321641619,5.22427894,145.9,145.87,23.99396722]
[1750321641822,5.13746627,145.89,145.87,23.99396722]
[1750321642138,5.22427894,145.9,145.87,23.99396722]
[1750321642460,5.13756748,145.89,145.87,23.99396722]
[1750321642755,5.22427894,145.9,145.87,23.99396722]
[1750321643045,5.13760778,145.89,145.87,23.99396722]
[1750321643347,5.22427894,145.9,145.87,23.99396722]
[1750321643560,5.13765897,145.89,145.87,23.99396722]
[1750321643740,5.22427894,145.9,145.87,23.99396722]
[1750321643940,5.13765864,145.89,145.87,23.99396722]
[1750321644250,5.22427894,145.9,145.87,23.99396722]
[1750321644421,5.13775393,145.89,145.87,23.99396722]
[1750321644621,5.22427894,145.9,145.87,23.99396722]
[1750321644853,5.1377546,145.89,145.87,23.99396722]
[1750321645031,5.22427894,145.9,145.87,23.99396722]
[1750321645234,5.13775491,145.89,145.87,23.99396722]
[1750321645440,5.22427894,145.9,145.87,23.99396722]
[1750321645754,5.13782955,145.89,145.87,23.99396722]
[1750321645934,5.22427894,145.9,145.87,23.99396722]
[1750321646247,5.13783022,145.89,145.87,23.99396722]
[1750321646452,5.22427894,145.9,145.87,23.99396722]
[1750321646622,5.13790751,145.89,145.87,23.99396722]
[1750321646820,5.22427894,145.9,145.87,23.99396722]
[1750321647017,10.36218611,145.89,145.87,23.99396722]
[1750321647326,36.39818146,145.88,145.85,6.85635927]
[1750321647525,31.22427894,145.86,145.82,6.85776985]
[1750321647735,5.22427894,145.83,145.82,6.85776985]
[1750321648242,5.22427894,145.83,145.8,24.00472019]
[1750321649849,26.0,145.86,145.8,24.00472019]
[1750321650151,5.22427894,145.83,145.8,24.00472019]
[1750321651857,5.22427894,145.82,145.8,24.00472019]
[1750321654562,5.22427894,145.83,145.8,24.00472019]
[1750321658454,5.22427894,145.82,145.8,24.00472019]
[1750321659646,26.0,145.86,145.8,24.00472019]
[1750321659846,5.22427894,145.83,145.8,24.00472019]
[1750321660750,31.1191863,145.86,145.8,24.00472019]
[1750321660751,5.22427894,145.81,145.8,24.00472019]
[1750321660946,5.22427894,145.81,145.8,6.85871056]
[1750321663651,5.22427894,145.81,145.77,24.0094124]
[1750321663849,5.22427894,145.79,145.77,24.0094124]
[1750321664561,5.22427894,145.78,145.77,24.0094124]
[1750321665165,1.5165,145.82,145.77,6.86012211]
[1750321665367,20.89711576,145.81,145.77,6.86012211]
[1750321665551,5.22427894,145.78,145.77,6.86012211]
[1750321665753,5.22427894,145.78,145.75,17.1526552]
[1750321665754,5.22427894,145.78,145.75,24.01371866]
[1750321665950,5.22427894,145.77,145.75,24.01371866]
[1750321666756,6.62970304,145.82,145.75,24.01371866]
[1750321667052,5.22427894,145.77,145.75,24.01371866]
[1750321671965,5.22427894,145.78,145.75,24.01371866]
[1750321673952,5.22427894,145.79,145.75,29.2379976]
[1750321674386,5.22427894,145.8,145.75,29.2379976]
[1750321674577,5.22427894,145.8,145.75,63.54331492]
[1750321674776,5.22427894,145.8,145.76,5.22427894]
[1750321675033,31.22427894,145.81,145.77,5.22427894]
[1750321675277,6.64,145.84,145.77,5.22427894]
[1750321675278,5.22427894,145.82,145.77,5.22427894]
[1750321675498,5.22427894,145.82,145.78,24.00878034]
[1750321675888,5.22427894,145.81,145.78,24.00878034]
[1750321676996,8.15611098,145.81,145.78,24.00878034]
[1750321677506,8.15611098,145.8,145.78,17.14912882]
[1750321677959,32.64,145.84,145.78,17.14912882]
[1750321678161,8.15611098,145.8,145.78,17.14912882]
[1750321678982,8.15611098,145.81,145.78,17.14912882]
[1750321681297,8.15611098,145.8,145.78,17.14912882]
[1750321684102,8.15611098,145.81,145.78,17.14912882]
[1750321686908,8.15611098,145.8,145.78,17.14912882]
[1750321688706,32.64,145.84,145.78,17.14912882]
[1750321688903,34.15611098,145.84,145.79,8.15611098]
[1750321689208,8.15611098,145.83,145.79,8.15611098]
[1750321689388,8.15611098,145.83,145.78,17.14912882]
[1750321689389,8.15611098,145.83,145.78,25.3052398]
[1750321690221,8.15611098,145.83,145.78,32.16489132]
[1750321693791,8.15611098,145.85,145.82,24.00219448]
[1750321694223,8.15611098,145.85,145.82,17.14442463]
[1750321698828,5.21739139,145.85,145.82,17.14442463]
[1750321700513,5.21739139,145.85,145.82,24.00219448]
[1750321708036,32.3684,145.88,145.82,24.00219448]
[1750321708216,5.21739139,145.84,145.82,24.00219448]
[1750321709014,5.21739139,145.83,145.82,6.85776985]
[1750321709212,5.21739139,145.83,145.79,24.00613812]
[1750321709528,5.21739139,145.82,145.79,24.00613812]
[1750321711644,5.21739139,145.81,145.79,24.00613812]
[1750321716444,5.21739139,145.8,145.79,24.00613812]
[1750321718730,5.21739139,145.8,145.77,24.01042738]
[1750321720060,26.0,145.82,145.77,24.01042738]
[1750321720228,5.21739139,145.8,145.77,24.01042738]
[1750321722515,5.21739139,145.81,145.77,29.22781877]
[1750321726147,5.21739139,145.81,145.77,24.01042738]
[1750321726438,5.21739139,145.81,145.77,29.22781877]
[1750321726641,5.21739139,145.82,145.77,63.52842932]
[1750321726850,5.21739139,145.82,145.78,5.21739139]
[1750321727141,5.21739139,145.82,145.78,93.41739139]
[1750321727739,5.21739139,145.81,145.78,88.2]
[1750321728332,5.21739139,145.81,145.79,6.85918101]
[1750321729242,7.69844718,145.84,145.79,24.00713354]
[1750321729428,5.13243657,145.83,145.79,24.00713354]
[1750321729630,5.21739139,145.81,145.79,24.00713354]
[1750321730533,5.21739139,145.81,145.79,17.14795253]
[1750321731931,5.21739139,145.8,145.78,6.85965152]
[1750321732138,5.21739139,145.79,145.78,6.85965152]
[1750321733235,5.21739139,145.79,145.77,17.15024272]
[1750321736156,5.21739139,145.79,145.75,58.31903944]
[1750321738228,5.21739139,145.79,145.75,63.53643083]
[1750321738638,10.34810855,145.82,145.78,5.21739139]
[1750321738854,5.21739139,145.82,145.77,5.21739139]
[1750321739537,5.21739139,145.82,145.76,18.64964886]
[1750321739769,26.0,145.83,145.77,29.22781877]
[1750321740065,5.21739139,145.82,145.77,29.22781877]
[1750321740970,26.0,145.83,145.77,29.22781877]
[1750321740971,5.21739139,145.81,145.77,29.22781877]
[1750321741172,5.13116732,145.82,145.77,29.22781877]
[1750321741372,5.21739139,145.81,145.77,29.22781877]
[1750321741771,5.21739139,145.81,145.77,24.01042738]
[1750321741951,26.0,145.83,145.77,24.01042738]
[1750321741952,5.21739139,145.8,145.77,24.01042738]
[1750321754758,5.21739139,145.8,145.77,17.15030527]